[Event "Titled Tuesday Blitz May 9 Early 2023"]
[White "Maghsoodloo, Parham"]
[Black "Akash G"]
[WhiteFideId "12539929"]
[BlackFideId "5040299"]
[WhiteElo "2655"]
[BlackElo "2395"]
[Result "1-0"]
[Round "02"]
[TimeControl "180+2"]
[Date "2023.05.09"]
[WhiteClock "0:01:20"]
[BlackClock "0:00:08"]

1. d4 {[%clk 0:02:53]}  Nf6 {[%clk 0:02:40]} 2. c4 {[%clk 0:02:53]}  g6 {[%clk 0:02:40]} 3. Nc3 {[%clk 0:02:51]}  Bg7 {[%clk 0:02:40]} 4. e4 {[%clk 0:02:48]}  d6 {[%clk 0:02:40]} 5. f3 {[%clk 0:02:45]}  O-O {[%clk 0:02:38]} 6. Be3 {[%clk 0:02:46]}  c5 {[%clk 0:02:38]} 7. Nge2 {[%clk 0:02:46]}  Nc6 {[%clk 0:02:36]} 8. d5 {[%clk 0:02:46]}  Ne5 {[%clk 0:02:36]} 9. Ng3 {[%clk 0:02:46]}  h5 {[%clk 0:02:35]} 10. Be2 {[%clk 0:02:45]}  e6 {[%clk 0:02:30]} 11. O-O {[%clk 0:02:37]}  a6 {[%clk 0:02:24]} 12. a4 {[%clk 0:02:34]}  exd5 {[%clk 0:02:22]} 13. cxd5 {[%clk 0:02:35]}  h4 {[%clk 0:02:08]} 14. Nh1 {[%clk 0:02:35]}  Nh5 {[%clk 0:02:07]} 15. f4 {[%clk 0:02:34]}  Nd7 {[%clk 0:01:59]} 16. Bxh5 {[%clk 0:02:33]}  gxh5 {[%clk 0:02:00]} 17. Qxh5 {[%clk 0:02:33]}  Re8 {[%clk 0:01:55]} 18. Nf2 {[%clk 0:02:31]}  Nf8 {[%clk 0:01:55]} 19. e5 {[%clk 0:02:23]}  dxe5 {[%clk 0:01:45]} 20. f5 {[%clk 0:02:23]}  e4 {[%clk 0:01:35]} 21. Bg5 {[%clk 0:02:13]}  f6 {[%clk 0:01:26]} 22. Bxh4 {[%clk 0:02:10]}  e3 {[%clk 0:01:12]} 23. Nfe4 {[%clk 0:02:10]}  Nh7 {[%clk 0:01:03]} 24. Rf3 {[%clk 0:01:59]}  Re5 {[%clk 0:00:59]} 25. Re1 {[%clk 0:01:47]}  b5 {[%clk 0:00:55]} 26. Bg3 {[%clk 0:01:41]}  Rxd5 {[%clk 0:00:51]} 27. Nxd5 {[%clk 0:01:33]}  Qxd5 {[%clk 0:00:52]} 28. Nd6 {[%clk 0:01:32]}  Bd7 {[%clk 0:00:41]} 29. Rfxe3 {[%clk 0:01:32]}  Bc6 {[%clk 0:00:33]} 30. Qe2 {[%clk 0:01:28]}  Ng5 {[%clk 0:00:30]} 31. h4 {[%clk 0:01:26]}  Nf7 {[%clk 0:00:28]} 32. Rd3 {[%clk 0:01:23]}  Qa2 {[%clk 0:00:22]} 33. Ra3 {[%clk 0:01:20]}  Qd5 {[%clk 0:00:08]} 34. Rd1 {[%clk 0:01:20]} 1-0


[Site "https://www.chess.com"]

[Event "Titled Tuesday Blitz May 9 Early 2023"]
[White "Omranalhosani21"]
[Black "Shimanov, Aleksandr"]
[BlackFideId "4198603"]
[WhiteElo "2592"]
[BlackElo "2631"]
[Result "0-1"]
[Round "02"]
[TimeControl "180+2"]
[Date "2023.05.09"]
[WhiteClock "0:00:00"]
[BlackClock "0:00:21"]

1. e4 {[%clk 0:02:58]}  e6 {[%clk 0:02:57]} 2. d3 {[%clk 0:02:55]}  d5 {[%clk 0:02:52]} 3. Nd2 {[%clk 0:02:55]}  c5 {[%clk 0:02:52]} 4. Ngf3 {[%clk 0:02:56]}  Nc6 {[%clk 0:02:53]} 5. g3 {[%clk 0:02:55]}  Nf6 {[%clk 0:02:41]} 6. Bg2 {[%clk 0:02:54]}  Be7 {[%clk 0:02:41]} 7. O-O {[%clk 0:02:54]}  O-O {[%clk 0:02:42]} 8. c3 {[%clk 0:02:52]}  b5 {[%clk 0:02:36]} 9. Re1 {[%clk 0:02:47]}  a5 {[%clk 0:02:33]} 10. e5 {[%clk 0:02:45]}  Nd7 {[%clk 0:02:33]} 11. Nf1 {[%clk 0:02:41]}  Qc7 {[%clk 0:02:33]} 12. Bf4 {[%clk 0:02:39]}  Bb7 {[%clk 0:02:33]} 13. h4 {[%clk 0:02:39]}  Rfc8 {[%clk 0:02:32]} 14. N1h2 {[%clk 0:02:39]}  Qd8 {[%clk 0:02:32]} 15. Qd2 {[%clk 0:02:38]}  b4 {[%clk 0:02:31]} 16. Ng4 {[%clk 0:02:32]}  Bf8 {[%clk 0:02:26]} 17. Bg5 {[%clk 0:02:21]}  Qe8 {[%clk 0:02:14]} 18. h5 {[%clk 0:02:07]}  h6 {[%clk 0:02:08]} 19. Bf4 {[%clk 0:01:57]}  a4 {[%clk 0:01:57]} 20. cxb4 {[%clk 0:01:03]}  Nxb4 {[%clk 0:01:50]} 21. a3 {[%clk 0:01:01]}  Nc6 {[%clk 0:01:50]} 22. Bxh6 {[%clk 0:00:45]}  gxh6 {[%clk 0:01:49]} 23. Nxh6+ {[%clk 0:00:46]}  Bxh6 {[%clk 0:01:49]} 24. Qxh6 {[%clk 0:00:47]}  Qf8 {[%clk 0:01:48]} 25. Qf4 {[%clk 0:00:47]}  Ba6 {[%clk 0:01:42]} 26. Rad1 {[%clk 0:00:39]}  Rab8 {[%clk 0:01:40]} 27. Rd2 {[%clk 0:00:37]}  Ne7 {[%clk 0:01:38]} 28. g4 {[%clk 0:00:36]}  c4 {[%clk 0:01:36]} 29. d4 {[%clk 0:00:32]}  c3 {[%clk 0:01:36]} 30. bxc3 {[%clk 0:00:32]}  Rxc3 {[%clk 0:01:37]} 31. Qg5+ {[%clk 0:00:15]}  Kh8 {[%clk 0:01:36]} 32. Nh4 {[%clk 0:00:12]}  Ng8 {[%clk 0:01:26]} 33. Qf4 {[%clk 0:00:06]}  Qg7 {[%clk 0:01:03]} 34. g5 {[%clk 0:00:07]}  Nf8 {[%clk 0:01:03]} 35. h6 {[%clk 0:00:06]}  Qh7 {[%clk 0:01:04]} 36. Bxd5 {[%clk 0:00:05]}  Bb7 {[%clk 0:00:30]} 37. Bxb7 {[%clk 0:00:04]}  Rxb7 {[%clk 0:00:31]} 38. Ng2 {[%clk 0:00:01]}  Rb1 {[%clk 0:00:24]} 39. Rxb1 {[%clk 0:00:01]}  Qxb1+ {[%clk 0:00:25]} 40. Kh2 {[%clk 0:00:00]}  Qg6 {[%clk 0:00:21]} 0-1


[Site "https://www.chess.com"]

[Event "Titled Tuesday Blitz May 9 Early 2023"]
[White "Nguyen, Ngoc Truong Son"]
[Black "Yaniuk, Volodymyr"]
[WhiteFideId "12401110"]
[BlackFideId "14133083"]
[WhiteElo "2556"]
[BlackElo "2141"]
[Result "1-0"]
[Round "02"]
[TimeControl "180+2"]
[Date "2023.05.09"]
[WhiteClock "0:00:49"]
[BlackClock "0:00:00"]

1. d4 {[%clk 0:02:56]}  d5 {[%clk 0:03:00]} 2. Nf3 {[%clk 0:02:55]}  Nf6 {[%clk 0:02:59]} 3. c4 {[%clk 0:02:55]}  e6 {[%clk 0:03:00]} 4. Nc3 {[%clk 0:02:54]}  Bb4 {[%clk 0:02:59]} 5. Qa4+ {[%clk 0:02:52]}  Nc6 {[%clk 0:02:59]} 6. Bg5 {[%clk 0:02:50]}  h6 {[%clk 0:02:31]} 7. Bxf6 {[%clk 0:02:50]}  Qxf6 {[%clk 0:02:32]} 8. e3 {[%clk 0:02:45]}  O-O {[%clk 0:02:30]} 9. Rc1 {[%clk 0:02:44]}  a6 {[%clk 0:02:22]} 10. Qc2 {[%clk 0:02:40]}  dxc4 {[%clk 0:02:19]} 11. Bxc4 {[%clk 0:02:41]}  e5 {[%clk 0:02:17]} 12. O-O {[%clk 0:02:39]}  exd4 {[%clk 0:02:14]} 13. Nd5 {[%clk 0:02:39]}  Qd6 {[%clk 0:02:04]} 14. exd4 {[%clk 0:02:19]}  Be6 {[%clk 0:01:55]} 15. Nxb4 {[%clk 0:02:04]}  Nxb4 {[%clk 0:01:56]} 16. Qb3 {[%clk 0:02:04]}  Nd5 {[%clk 0:01:43]} 17. Ne5 {[%clk 0:01:58]}  b5 {[%clk 0:01:35]} 18. Bxd5 {[%clk 0:01:56]}  Bxd5 {[%clk 0:01:36]} 19. Qc2 {[%clk 0:01:54]}  f6 {[%clk 0:01:15]} 20. Ng4 {[%clk 0:01:49]}  Qf4 {[%clk 0:01:04]} 21. Ne3 {[%clk 0:01:47]}  c6 {[%clk 0:00:52]} 22. Rfd1 {[%clk 0:01:23]}  Be4 {[%clk 0:00:44]} 23. Qe2 {[%clk 0:01:18]}  Rae8 {[%clk 0:00:42]} 24. Qg4 {[%clk 0:01:12]}  Qd6 {[%clk 0:00:39]} 25. Qg3 {[%clk 0:00:55]}  Qb4 {[%clk 0:00:31]} 26. f3 {[%clk 0:00:51]}  Bd5 {[%clk 0:00:19]} 27. Nf5 {[%clk 0:00:51]}  Re7 {[%clk 0:00:00]} 28. a3 {[%clk 0:00:49]} 1-0


[Site "https://www.chess.com"]

[Event "Titled Tuesday Blitz May 9 Early 2023"]
[White "Lenderman, Aleksandr"]
[Black "Ingebretsen, Jens E"]
[WhiteFideId "2021285"]
[BlackFideId "1522965"]
[WhiteElo "2607"]
[BlackElo "2213"]
[Result "1-0"]
[Round "02"]
[TimeControl "180+2"]
[Date "2023.05.09"]
[WhiteClock "0:01:04"]
[BlackClock "0:00:31"]

1. Nf3 {[%clk 0:03:00]}  d5 {[%clk 0:02:58]} 2. b3 {[%clk 0:03:01]}  c5 {[%clk 0:02:56]} 3. e3 {[%clk 0:02:58]}  Nc6 {[%clk 0:02:56]} 4. Bb2 {[%clk 0:02:57]}  Nf6 {[%clk 0:02:56]} 5. Bb5 {[%clk 0:02:56]}  g6 {[%clk 0:02:56]} 6. c4 {[%clk 0:02:52]}  dxc4 {[%clk 0:02:53]} 7. Ne5 {[%clk 0:02:37]}  Bd7 {[%clk 0:02:45]} 8. Bxc6 {[%clk 0:02:31]}  Bxc6 {[%clk 0:02:39]} 9. Nxc6 {[%clk 0:02:29]}  bxc6 {[%clk 0:02:39]} 10. Bxf6 {[%clk 0:02:21]}  exf6 {[%clk 0:02:39]} 11. bxc4 {[%clk 0:02:21]}  Bg7 {[%clk 0:02:28]} 12. Nc3 {[%clk 0:02:19]}  f5 {[%clk 0:02:24]} 13. Rc1 {[%clk 0:02:17]}  Qd3 {[%clk 0:02:23]} 14. Qe2 {[%clk 0:02:15]}  O-O-O {[%clk 0:02:16]} 15. Qxd3 {[%clk 0:02:05]}  Rxd3 {[%clk 0:02:16]} 16. Ne2 {[%clk 0:01:57]}  Rhd8 {[%clk 0:02:14]} 17. Rc2 {[%clk 0:01:57]}  Kc7 {[%clk 0:01:55]} 18. Nc1 {[%clk 0:01:52]}  R3d6 {[%clk 0:01:37]} 19. Nb3 {[%clk 0:01:50]}  Kb6 {[%clk 0:01:23]} 20. d4 {[%clk 0:01:48]}  Re6 {[%clk 0:01:03]} 21. Nxc5 {[%clk 0:01:44]}  Re7 {[%clk 0:01:03]} 22. Rb2+ {[%clk 0:01:43]}  Kc7 {[%clk 0:00:59]} 23. Rb7+ {[%clk 0:01:42]}  Kd6 {[%clk 0:00:58]} 24. O-O {[%clk 0:01:36]}  f4 {[%clk 0:00:51]} 25. Re1 {[%clk 0:01:21]}  Rde8 {[%clk 0:00:46]} 26. Kf1 {[%clk 0:01:11]}  fxe3 {[%clk 0:00:39]} 27. fxe3 {[%clk 0:01:05]}  Rxe3 {[%clk 0:00:31]} 28. Rd7# {[%clk 0:01:04]} 1-0


[Site "https://www.chess.com"]

[Event "Titled Tuesday Blitz May 9 Early 2023"]
[White "Gurel, Ediz"]
[Black "Hnydiuk, Aleksander"]
[WhiteFideId "44507356"]
[BlackFideId "1109057"]
[WhiteElo "2352"]
[BlackElo "2374"]
[Result "1-0"]
[Round "02"]
[TimeControl "180+2"]
[Date "2023.05.09"]
[WhiteClock "0:00:35"]
[BlackClock "0:00:00"]

1. d4 {[%clk 0:03:00]}  Nf6 {[%clk 0:02:59]} 2. Nf3 {[%clk 0:02:59]}  d5 {[%clk 0:02:56]} 3. c4 {[%clk 0:02:59]}  c6 {[%clk 0:02:56]} 4. Nc3 {[%clk 0:02:58]}  dxc4 {[%clk 0:02:54]} 5. a4 {[%clk 0:02:58]}  Bf5 {[%clk 0:02:51]} 6. Ne5 {[%clk 0:02:56]}  e6 {[%clk 0:02:35]} 7. Nxc4 {[%clk 0:02:38]}  Bb4 {[%clk 0:02:30]} 8. f3 {[%clk 0:02:28]}  O-O {[%clk 0:02:23]} 9. e4 {[%clk 0:02:19]}  Nxe4 {[%clk 0:02:22]} 10. fxe4 {[%clk 0:02:20]}  Qh4+ {[%clk 0:02:21]} 11. Kd2 {[%clk 0:02:14]}  Qxe4 {[%clk 0:02:11]} 12. Qf3 {[%clk 0:02:03]}  Qxd4+ {[%clk 0:02:07]} 13. Ke1 {[%clk 0:02:03]}  Na6 {[%clk 0:01:50]} 14. Be3 {[%clk 0:01:36]}  Bxc3+ {[%clk 0:01:45]} 15. Kf2 {[%clk 0:01:36]}  Qf6 {[%clk 0:01:30]} 16. bxc3 {[%clk 0:01:35]}  Qxc3 {[%clk 0:01:30]} 17. Rc1 {[%clk 0:01:26]}  Qb3 {[%clk 0:01:25]} 18. Be2 {[%clk 0:01:24]}  Nb4 {[%clk 0:01:18]} 19. Bc5 {[%clk 0:01:10]}  Nd3+ {[%clk 0:00:18]} 20. Bxd3 {[%clk 0:01:09]}  Bxd3 {[%clk 0:00:18]} 21. Bxf8 {[%clk 0:01:08]}  Rxf8 {[%clk 0:00:16]} 22. Nd2 {[%clk 0:01:01]}  Qa3 {[%clk 0:00:10]} 23. Qe3 {[%clk 0:00:52]}  Rd8 {[%clk 0:00:09]} 24. Rhd1 {[%clk 0:00:50]}  Qxa4 {[%clk 0:00:09]} 25. Nf3 {[%clk 0:00:40]}  Qa6 {[%clk 0:00:07]} 26. Ne5 {[%clk 0:00:37]}  Qa2+ {[%clk 0:00:05]} 27. Rd2 {[%clk 0:00:37]}  Qa3 {[%clk 0:00:00]} 28. Rxd3 {[%clk 0:00:35]} 1-0


[Site "https://www.chess.com"]

[Event "Titled Tuesday Blitz May 9 Early 2023"]
[White "Brunner, Nicolas"]
[Black "Sjugirov, Sanan"]
[WhiteFideId "620246"]
[BlackFideId "4189302"]
[WhiteElo "2327"]
[BlackElo "2569"]
[Result "0-1"]
[Round "02"]
[TimeControl "180+2"]
[Date "2023.05.09"]
[WhiteClock "0:00:02"]
[BlackClock "0:01:23"]

1. Nf3 {[%clk 0:02:58]}  d5 {[%clk 0:02:59]} 2. g3 {[%clk 0:02:58]}  Nd7 {[%clk 0:02:59]} 3. d4 {[%clk 0:02:56]}  Nb6 {[%clk 0:02:59]} 4. Bg2 {[%clk 0:02:56]}  Bf5 {[%clk 0:02:57]} 5. O-O {[%clk 0:02:55]}  e6 {[%clk 0:02:57]} 6. Nh4 {[%clk 0:02:53]}  Bg4 {[%clk 0:02:56]} 7. h3 {[%clk 0:02:47]}  Bh5 {[%clk 0:02:56]} 8. Nd2 {[%clk 0:02:43]}  Be7 {[%clk 0:02:55]} 9. Nhf3 {[%clk 0:02:43]}  Nf6 {[%clk 0:02:55]} 10. b3 {[%clk 0:02:42]}  O-O {[%clk 0:02:55]} 11. Bb2 {[%clk 0:02:42]}  a5 {[%clk 0:02:46]} 12. a3 {[%clk 0:02:41]}  c6 {[%clk 0:02:45]} 13. c4 {[%clk 0:02:40]}  a4 {[%clk 0:02:41]} 14. c5 {[%clk 0:02:37]}  Nbd7 {[%clk 0:02:41]} 15. b4 {[%clk 0:02:38]}  Ne4 {[%clk 0:02:37]} 16. Nxe4 {[%clk 0:02:30]}  dxe4 {[%clk 0:02:38]} 17. Ne5 {[%clk 0:02:30]}  f5 {[%clk 0:02:36]} 18. f3 {[%clk 0:01:50]}  exf3 {[%clk 0:02:29]} 19. exf3 {[%clk 0:01:50]}  Nxe5 {[%clk 0:02:25]} 20. dxe5 {[%clk 0:01:49]}  Qc7 {[%clk 0:02:25]} 21. Qc2 {[%clk 0:01:43]}  Rfd8 {[%clk 0:02:19]} 22. Rad1 {[%clk 0:01:40]}  Rd5 {[%clk 0:02:17]} 23. g4 {[%clk 0:01:31]}  Bg6 {[%clk 0:02:16]} 24. Rxd5 {[%clk 0:01:13]}  cxd5 {[%clk 0:02:17]} 25. Qd2 {[%clk 0:01:11]}  b6 {[%clk 0:02:14]} 26. cxb6 {[%clk 0:01:10]}  Qxb6+ {[%clk 0:02:15]} 27. Bd4 {[%clk 0:01:10]}  Qd8 {[%clk 0:02:06]} 28. Rc1 {[%clk 0:01:08]}  fxg4 {[%clk 0:02:06]} 29. hxg4 {[%clk 0:01:08]}  h5 {[%clk 0:02:06]} 30. gxh5 {[%clk 0:00:58]}  Bxh5 {[%clk 0:02:07]} 31. f4 {[%clk 0:00:57]}  Bg4 {[%clk 0:02:05]} 32. Bc5 {[%clk 0:00:51]}  Bh4 {[%clk 0:01:54]} 33. Bf2 {[%clk 0:00:45]}  Rb8 {[%clk 0:01:44]} 34. Rc5 {[%clk 0:00:38]}  Be7 {[%clk 0:01:41]} 35. Ra5 {[%clk 0:00:37]}  Rc8 {[%clk 0:01:39]} 36. Rxa4 {[%clk 0:00:32]}  Bf5 {[%clk 0:01:38]} 37. Ra7 {[%clk 0:00:27]}  Rc2 {[%clk 0:01:38]} 38. Qe3 {[%clk 0:00:24]}  Bh4 {[%clk 0:01:26]} 39. Bxh4 {[%clk 0:00:19]}  Qxh4 {[%clk 0:01:27]} 40. b5 {[%clk 0:00:08]}  Rb2 {[%clk 0:01:24]} 41. Bf1 {[%clk 0:00:02]}  Qh2# {[%clk 0:01:23]} 0-1


[Site "https://www.chess.com"]

[Event "Titled Tuesday Blitz May 9 Early 2023"]
[White "Zhigalko, Sergei"]
[Black "SashaKuzhilniy"]
[WhiteFideId "13502956"]
[WhiteElo "2626"]
[BlackElo "2575"]
[Result "1-0"]
[Round "02"]
[TimeControl "180+2"]
[Date "2023.05.09"]
[WhiteClock "0:01:03"]
[BlackClock "0:00:20"]

1. e4 {[%clk 0:03:00]}  d5 {[%clk 0:02:55]} 2. exd5 {[%clk 0:03:00]}  Qxd5 {[%clk 0:02:56]} 3. Nc3 {[%clk 0:03:01]}  Qe5+ {[%clk 0:02:57]} 4. Be2 {[%clk 0:02:57]}  Bg4 {[%clk 0:02:56]} 5. d4 {[%clk 0:02:56]}  Bxe2 {[%clk 0:02:57]} 6. Ngxe2 {[%clk 0:02:55]}  Qa5 {[%clk 0:02:57]} 7. O-O {[%clk 0:02:55]}  Nf6 {[%clk 0:02:57]} 8. b4 {[%clk 0:02:55]}  Qh5 {[%clk 0:02:56]} 9. Qd3 {[%clk 0:02:50]}  e6 {[%clk 0:02:57]} 10. Nf4 {[%clk 0:02:48]}  Qf5 {[%clk 0:02:57]} 11. Qxf5 {[%clk 0:02:48]}  exf5 {[%clk 0:02:58]} 12. Re1+ {[%clk 0:02:41]}  Kd7 {[%clk 0:02:58]} 13. Nd3 {[%clk 0:02:40]}  Nc6 {[%clk 0:02:58]} 14. Ne5+ {[%clk 0:02:34]}  Nxe5 {[%clk 0:02:55]} 15. dxe5 {[%clk 0:02:35]}  Bxb4 {[%clk 0:02:43]} 16. Rd1+ {[%clk 0:02:31]}  Kc6 {[%clk 0:02:24]} 17. Ne2 {[%clk 0:02:31]}  Nd5 {[%clk 0:01:26]} 18. Nd4+ {[%clk 0:02:31]}  Kc5 {[%clk 0:01:26]} 19. Nb3+ {[%clk 0:02:21]}  Kc6 {[%clk 0:01:26]} 20. Nd4+ {[%clk 0:02:14]}  Kc5 {[%clk 0:01:26]} 21. Nxf5 {[%clk 0:01:55]}  Bc3 {[%clk 0:01:14]} 22. Rb1 {[%clk 0:01:52]}  Bxe5 {[%clk 0:01:12]} 23. Ba3+ {[%clk 0:01:47]}  Kc6 {[%clk 0:01:11]} 24. c4 {[%clk 0:01:46]}  g6 {[%clk 0:00:49]} 25. Rxd5 {[%clk 0:01:36]}  Rhe8 {[%clk 0:00:41]} 26. Ne7+ {[%clk 0:01:31]}  Rxe7 {[%clk 0:00:41]} 27. Bxe7 {[%clk 0:01:32]}  f6 {[%clk 0:00:40]} 28. Bc5 {[%clk 0:01:14]}  b6 {[%clk 0:00:33]} 29. Be3 {[%clk 0:01:14]}  Re8 {[%clk 0:00:33]} 30. h3 {[%clk 0:01:12]}  Bd6 {[%clk 0:00:31]} 31. Kf1 {[%clk 0:01:09]}  Re4 {[%clk 0:00:31]} 32. Rd4 {[%clk 0:01:10]}  Re5 {[%clk 0:00:31]} 33. Bf4 {[%clk 0:01:08]}  Ra5 {[%clk 0:00:30]} 34. Bxd6 {[%clk 0:01:09]}  cxd6 {[%clk 0:00:31]} 35. Rb2 {[%clk 0:01:08]}  Re5 {[%clk 0:00:30]} 36. Rbd2 {[%clk 0:01:08]}  Re6 {[%clk 0:00:30]} 37. f3 {[%clk 0:01:08]}  Kc5 {[%clk 0:00:30]} 38. Re4 {[%clk 0:01:08]}  Re5 {[%clk 0:00:26]} 39. Rxe5+ {[%clk 0:01:07]}  fxe5 {[%clk 0:00:27]} 40. Rd5+ {[%clk 0:01:07]}  Kc6 {[%clk 0:00:27]} 41. Ke2 {[%clk 0:01:07]}  a6 {[%clk 0:00:27]} 42. Rd1 {[%clk 0:01:05]}  Kc5 {[%clk 0:00:26]} 43. Ke3 {[%clk 0:01:06]}  g5 {[%clk 0:00:25]} 44. g4 {[%clk 0:01:05]}  a5 {[%clk 0:00:21]} 45. a4 {[%clk 0:01:03]}  Kxc4 {[%clk 0:00:19]} 46. Rxd6 {[%clk 0:01:03]}  Kb4 {[%clk 0:00:19]} 47. Rxb6+ {[%clk 0:01:02]}  Kxa4 {[%clk 0:00:20]} 48. Ke4 {[%clk 0:01:02]}  Ka3 {[%clk 0:00:21]} 49. Kxe5 {[%clk 0:01:02]}  a4 {[%clk 0:00:21]} 50. Kf5 {[%clk 0:01:03]}  Ka2 {[%clk 0:00:22]} 51. Kxg5 {[%clk 0:01:03]}  a3 {[%clk 0:00:23]} 52. f4 {[%clk 0:01:02]}  h6+ {[%clk 0:00:20]} 53. Kxh6 {[%clk 0:01:02]}  Ka1 {[%clk 0:00:21]} 54. Ra6 {[%clk 0:01:03]}  a2 {[%clk 0:00:21]} 55. f5 {[%clk 0:01:03]}  Kb2 {[%clk 0:00:21]} 56. Rxa2+ {[%clk 0:01:04]}  Kxa2 {[%clk 0:00:20]} 57. g5 {[%clk 0:01:03]} 1-0


[Site "https://www.chess.com"]

[Event "Titled Tuesday Blitz May 9 Early 2023"]
[White "Shevtchenko, Olesya"]
[Black "Livaic, Leon"]
[WhiteFideId "24131890"]
[BlackFideId "14531534"]
[WhiteElo "2003"]
[BlackElo "2522"]
[Result "0-1"]
[Round "02"]
[TimeControl "180+2"]
[Date "2023.05.09"]
[WhiteClock "0:02:04"]
[BlackClock "0:01:55"]

1. e4 {[%clk 0:02:58]}  e6 {[%clk 0:02:59]} 2. d4 {[%clk 0:02:58]}  d5 {[%clk 0:02:59]} 3. Nc3 {[%clk 0:02:58]}  Bb4 {[%clk 0:03:00]} 4. Ne2 {[%clk 0:02:57]}  dxe4 {[%clk 0:03:00]} 5. a3 {[%clk 0:02:56]}  Bxc3+ {[%clk 0:03:00]} 6. Nxc3 {[%clk 0:02:56]}  Nc6 {[%clk 0:03:01]} 7. d5 {[%clk 0:02:55]}  exd5 {[%clk 0:03:02]} 8. Qxd5 {[%clk 0:02:55]}  Nge7 {[%clk 0:03:03]} 9. Qxe4 {[%clk 0:02:52]}  Bf5 {[%clk 0:03:03]} 10. Qh4 {[%clk 0:02:52]}  Nd4 {[%clk 0:02:54]} 11. Bb5+ {[%clk 0:02:34]}  c6 {[%clk 0:02:43]} 12. Ba4 {[%clk 0:02:34]}  Bxc2 {[%clk 0:02:27]} 13. O-O {[%clk 0:02:32]}  Bxa4 {[%clk 0:02:24]} 14. Nxa4 {[%clk 0:02:33]}  Ndf5 {[%clk 0:02:08]} 15. Qg4 {[%clk 0:02:30]}  Qd4 {[%clk 0:02:03]} 16. Bf4 {[%clk 0:02:21]}  Qxa4 {[%clk 0:02:00]} 17. Rfe1 {[%clk 0:02:09]}  O-O {[%clk 0:02:00]} 18. h4 {[%clk 0:02:08]}  Ng6 {[%clk 0:01:56]} 19. Qxf5 {[%clk 0:02:04]}  Qxf4 {[%clk 0:01:55]} 0-1


[Site "https://www.chess.com"]

[Event "Titled Tuesday Blitz May 9 Early 2023"]
[White "Saya, Ethan"]
[Black "Salinas Herrera, Pablo"]
[WhiteFideId "26095181"]
[BlackFideId "3407128"]
[WhiteElo "2164"]
[BlackElo "2546"]
[Result "0-1"]
[Round "02"]
[TimeControl "180+2"]
[Date "2023.05.09"]
[WhiteClock "0:00:00"]
[BlackClock "0:00:06"]

1. e4 {[%clk 0:03:00]}  c5 {[%clk 0:02:59]} 2. Nf3 {[%clk 0:03:00]}  e6 {[%clk 0:02:57]} 3. c3 {[%clk 0:02:35]}  d5 {[%clk 0:02:56]} 4. exd5 {[%clk 0:02:34]}  Qxd5 {[%clk 0:02:57]} 5. d4 {[%clk 0:02:34]}  Nf6 {[%clk 0:02:56]} 6. Be2 {[%clk 0:02:27]}  Be7 {[%clk 0:02:56]} 7. O-O {[%clk 0:02:26]}  O-O {[%clk 0:02:57]} 8. dxc5 {[%clk 0:02:22]}  Qxc5 {[%clk 0:02:56]} 9. Be3 {[%clk 0:02:21]}  Qc7 {[%clk 0:02:56]} 10. Nbd2 {[%clk 0:02:19]}  Nc6 {[%clk 0:02:53]} 11. h3 {[%clk 0:02:11]}  Rd8 {[%clk 0:02:53]} 12. Qa4 {[%clk 0:02:10]}  Bd7 {[%clk 0:02:53]} 13. Qf4 {[%clk 0:02:06]}  Qxf4 {[%clk 0:02:26]} 14. Bxf4 {[%clk 0:02:07]}  Be8 {[%clk 0:02:27]} 15. Rad1 {[%clk 0:02:06]}  Rac8 {[%clk 0:02:26]} 16. Ne5 {[%clk 0:01:59]}  Nd5 {[%clk 0:02:23]} 17. Nxc6 {[%clk 0:01:56]}  Bxc6 {[%clk 0:02:24]} 18. Bg3 {[%clk 0:01:56]}  b5 {[%clk 0:02:21]} 19. Bf3 {[%clk 0:01:56]}  Be8 {[%clk 0:02:10]} 20. Nb3 {[%clk 0:01:56]}  b4 {[%clk 0:02:05]} 21. Bxd5 {[%clk 0:01:54]}  exd5 {[%clk 0:02:06]} 22. cxb4 {[%clk 0:01:52]}  Bxb4 {[%clk 0:02:07]} 23. Nd4 {[%clk 0:01:50]}  f6 {[%clk 0:01:45]} 24. a3 {[%clk 0:01:39]}  Ba5 {[%clk 0:01:45]} 25. b4 {[%clk 0:01:37]}  Bb6 {[%clk 0:01:44]} 26. Rfe1 {[%clk 0:01:29]}  Ba4 {[%clk 0:01:44]} 27. Rd2 {[%clk 0:01:29]}  Re8 {[%clk 0:01:33]} 28. Rxe8+ {[%clk 0:01:26]}  Rxe8 {[%clk 0:01:34]} 29. Nf5 {[%clk 0:01:19]}  Bb3 {[%clk 0:01:34]} 30. Bd6 {[%clk 0:01:10]}  Re1+ {[%clk 0:01:22]} 31. Kh2 {[%clk 0:01:10]}  Kf7 {[%clk 0:01:03]} 32. Bc5 {[%clk 0:01:02]}  Bc7+ {[%clk 0:01:03]} 33. g3 {[%clk 0:01:01]}  a6 {[%clk 0:00:55]} 34. Ne3 {[%clk 0:00:54]}  Ke6 {[%clk 0:00:55]} 35. Nc2 {[%clk 0:00:50]}  Bxc2 {[%clk 0:00:35]} 36. Rxc2 {[%clk 0:00:51]}  Kd7 {[%clk 0:00:29]} 37. Kg2 {[%clk 0:00:45]}  Re4 {[%clk 0:00:25]} 38. Kf3 {[%clk 0:00:42]}  g6 {[%clk 0:00:24]} 39. Be3 {[%clk 0:00:36]}  Rc4 {[%clk 0:00:17]} 40. Rxc4 {[%clk 0:00:33]}  dxc4 {[%clk 0:00:17]} 41. Ke4 {[%clk 0:00:34]}  Kc6 {[%clk 0:00:17]} 42. Kd4 {[%clk 0:00:30]}  Kb5 {[%clk 0:00:17]} 43. Kc3 {[%clk 0:00:31]}  Be5+ {[%clk 0:00:17]} 44. Bd4 {[%clk 0:00:31]}  Bd6 {[%clk 0:00:08]} 45. Bxf6 {[%clk 0:00:26]}  a5 {[%clk 0:00:09]} 46. a4+ {[%clk 0:00:22]}  Kxa4 {[%clk 0:00:09]} 47. bxa5 {[%clk 0:00:22]}  Kb5 {[%clk 0:00:09]} 48. Bd8 {[%clk 0:00:16]}  Bb4+ {[%clk 0:00:09]} 49. Kd4 {[%clk 0:00:14]}  Bc5+ {[%clk 0:00:10]} 50. Kc3 {[%clk 0:00:09]}  Bxf2 {[%clk 0:00:11]} 51. a6 {[%clk 0:00:07]}  Be1+ {[%clk 0:00:06]} 52. Kd4 {[%clk 0:00:07]}  Bxg3 {[%clk 0:00:07]} 53. a7 {[%clk 0:00:03]}  Bf2+ {[%clk 0:00:07]} 54. Kd5 {[%clk 0:00:04]}  Bxa7 {[%clk 0:00:08]} 55. Bf6 {[%clk 0:00:03]}  Be3 {[%clk 0:00:07]} 56. Ke6 {[%clk 0:00:03]}  Ka4 {[%clk 0:00:05]} 57. Kf7 {[%clk 0:00:03]}  g5 {[%clk 0:00:04]} 58. Kg7 {[%clk 0:00:03]}  h5 {[%clk 0:00:05]} 59. Kh6 {[%clk 0:00:02]}  g4+ {[%clk 0:00:05]} 60. Kxh5 {[%clk 0:00:02]}  gxh3 {[%clk 0:00:06]} 61. Kg4 {[%clk 0:00:00]}  h2 {[%clk 0:00:06]} 0-1


[Site "https://www.chess.com"]